[Event "*** MasterClass Titled Tuesday Blitz"]
[Site "Chess.com"]
[Date "2017.12.05"]
[Round "4"]
[White "igorkovalenko"]
[Black "EndgameGrinder"]
[Result "1-0"]
[WhiteElo "2716"]
[BlackElo "2427"]
[TimeControl "180+2"]
[EndTime "15:03:23 PST"]
[Termination "igorkovalenko won by resignation"]

1. e4 {[%clk 0:03:01.9]} 1... c5 {[%clk 0:03:00.6]} 2. Nf3 {[%clk 0:02:59.4]}
2... e6 {[%clk 0:03:01.3]} 3. g3 {[%clk 0:02:41.9]} 3... Nc6 {[%clk 0:03:01]} 4.
Bg2 {[%clk 0:02:43.2]} 4... Nf6 {[%clk 0:03:01.9]} 5. Qe2 {[%clk 0:02:44.7]}
5... Be7 {[%clk 0:02:57.9]} 6. O-O {[%clk 0:02:45.5]} 6... e5 {[%clk 0:02:54.6]}
7. Nc3 {[%clk 0:02:46.2]} 7... O-O {[%clk 0:02:54.2]} 8. Nd5 {[%clk 0:02:47.6]}
8... d6 {[%clk 0:02:48.2]} 9. Nxe7+ {[%clk 0:02:47.8]} 9... Qxe7 {[%clk
0:02:48.7]} 10. c3 {[%clk 0:02:49.3]} 10... Bg4 {[%clk 0:02:47.3]} 11. h3 {[%clk
0:02:49.4]} 11... Bh5 {[%clk 0:02:48.6]} 12. d3 {[%clk 0:02:50.4]} 12... b5
{[%clk 0:02:46.6]} 13. Bg5 {[%clk 0:02:47.3]} 13... h6 {[%clk 0:02:44.4]} 14.
Be3 {[%clk 0:02:48.5]} 14... Bxf3 {[%clk 0:02:25]} 15. Bxf3 {[%clk 0:02:47.1]}
15... b4 {[%clk 0:02:23.9]} 16. Qc2 {[%clk 0:02:41.3]} 16... Rab8 {[%clk
0:02:18.8]} 17. Kh2 {[%clk 0:02:40.2]} 17... bxc3 {[%clk 0:02:18.2]} 18. bxc3
{[%clk 0:02:41.2]} 18... Rb6 {[%clk 0:02:18.3]} 19. Rfb1 {[%clk 0:02:41.7]}
19... Rfb8 {[%clk 0:02:19.4]} 20. Rb3 {[%clk 0:02:42.9]} 20... Na5 {[%clk
0:02:10.7]} 21. Ra3 {[%clk 0:02:43.9]} 21... Nc6 {[%clk 0:02:01.1]} 22. Qa4
{[%clk 0:02:44.8]} 22... R8b7 {[%clk 0:01:55.5]} 23. Rb3 {[%clk 0:02:45.3]}
23... Qc7 {[%clk 0:01:56.2]} 24. Rab1 {[%clk 0:02:45.6]} 24... Nd7 {[%clk
0:01:48.4]} 25. Bg4 {[%clk 0:02:38.6]} 25... Nf6 {[%clk 0:01:47.6]} 26. Bd1
{[%clk 0:02:36.3]} 26... Nd8 {[%clk 0:01:29]} 27. Kg2 {[%clk 0:02:33.7]} 27...
Ne6 {[%clk 0:01:29.5]} 28. h4 {[%clk 0:02:34.3]} 28... Rxb3 {[%clk 0:01:26.5]}
29. Rxb3 {[%clk 0:02:33.6]} 29... Rxb3 {[%clk 0:01:10.2]} 30. axb3 {[%clk
0:02:32.9]} 30... Qd7 {[%clk 0:01:07.1]} 31. Qxd7 {[%clk 0:02:32.6]} 31... Nxd7
{[%clk 0:01:09]} 32. f4 {[%clk 0:02:31.4]} 32... Kf8 {[%clk 0:01:06.4]} 33. f5
{[%clk 0:02:32.8]} 33... Nc7 {[%clk 0:01:06.9]} 34. g4 {[%clk 0:02:34.3]} 34...
Nb5 {[%clk 0:01:07.2]} 35. Bd2 {[%clk 0:02:34.4]} 35... Nb6 {[%clk 0:01:02.5]}
36. Kf3 {[%clk 0:02:32.8]} 36... f6 {[%clk 0:01:03.3]} 37. Ke3 {[%clk
0:02:27.9]} 37... Ke7 {[%clk 0:01:03.8]} 38. Be1 {[%clk 0:02:29.1]} 38... Nc7
{[%clk 0:01:03.7]} 39. Kd2 {[%clk 0:02:30.2]} 39... Nb5 {[%clk 0:01:02.5]} 40.
Kc2 {[%clk 0:02:31.1]} 40... Nc7 {[%clk 0:01:03.8]} 41. Be2 {[%clk 0:02:31.9]}
41... Kd7 {[%clk 0:01:02.6]} 42. Bf2 {[%clk 0:02:33]} 42... Kc6 {[%clk
0:01:02.4]} 43. Kb2 {[%clk 0:02:34.4]} 43... Nd7 {[%clk 0:01:01.7]} 44. Be3
{[%clk 0:02:30.3]} 44... Nb6 {[%clk 0:00:57.8]} 45. Bf3 {[%clk 0:02:24.2]} 45...
Kd7 {[%clk 0:00:58.5]} 46. g5 {[%clk 0:02:22.9]} 46... hxg5 {[%clk 0:00:59.2]}
47. hxg5 {[%clk 0:02:24.8]} 47... a5 {[%clk 0:00:53]} 48. Bh5 {[%clk 0:02:24.4]}
48... a4 {[%clk 0:00:53.1]} 49. Bf7 {[%clk 0:02:24.8]} 49... axb3 {[%clk
0:00:53.4]} 50. Kxb3 {[%clk 0:02:26.7]} 50... Ke7 {[%clk 0:00:53]} 51. g6 {[%clk
0:02:27.7]} 51... Na6 {[%clk 0:00:47.5]} 52. Bd2 {[%clk 0:02:18.6]} 52... Nb8
{[%clk 0:00:48.3]} 53. Bc4 {[%clk 0:02:10.7]} 53... Nc6 {[%clk 0:00:48.3]} 54.
Bb5 {[%clk 0:02:11.6]} 54... Na5+ {[%clk 0:00:49]} 55. Ka3 {[%clk 0:02:12.4]}
55... Nb7 {[%clk 0:00:45.8]} 56. c4 {[%clk 0:02:08.8]} 56... Kf8 {[%clk
0:00:38.3]} 57. Ba6 {[%clk 0:02:09.9]} 57... Nd8 {[%clk 0:00:28]} 58. Ba5 {[%clk
0:02:10.6]} 58... Nc6 {[%clk 0:00:26.3]} 59. Bxb6 {[%clk 0:02:11.6]} 59... Nb4
{[%clk 0:00:27.6]} 60. Bb7 {[%clk 0:02:10.5]} 60... Nxd3 {[%clk 0:00:28.5]} 61.
Ka4 {[%clk 0:02:08.4]} 61... Ke7 {[%clk 0:00:27.3]} 62. Kb5 {[%clk 0:02:09.6]}
62... Nb2 {[%clk 0:00:28]} 63. Bd5 {[%clk 0:02:09.7]} 63... Nd1 {[%clk
0:00:25.6]} 64. Kc6 {[%clk 0:02:10.3]} 64... Ne3 {[%clk 0:00:25.3]} 65. Kc7
{[%clk 0:02:10.9]} 65... Nc2 {[%clk 0:00:25.6]} 66. Kc8 {[%clk 0:02:11.2]} 66...
Nd4 {[%clk 0:00:25.2]} 67. Bd8+ {[%clk 0:02:12.4]} 67... Ke8 {[%clk 0:00:25.2]}
68. Bf7+ {[%clk 0:02:13.5]} 68... Kf8 {[%clk 0:00:26.5]} 69. Kd7 {[%clk
0:02:14.8]} 69... Nc6 {[%clk 0:00:24.2]} 70. Kxc6 {[%clk 0:02:13.3]} 70... d5
{[%clk 0:00:25.5]} 71. Kd7 {[%clk 0:02:14.9]} 1-0

[Event "*** MasterClass Titled Tuesday Blitz"]
[Site "Chess.com"]
[Date "2017.12.05"]
[Round "4"]
[White "AndreyOstrovskiy"]
[Black "Al_Shima"]
[Result "1-0"]
[WhiteElo "2528"]
[BlackElo "2348"]
[TimeControl "180+2"]
[EndTime "15:03:31 PST"]
[Termination "AndreyOstrovskiy won by checkmate"]

1. e4 {[%clk 0:03:01.9]} 1... d5 {[%clk 0:03:00.6]} 2. exd5 {[%clk 0:03:01.9]}
2... Nf6 {[%clk 0:03:01.8]} 3. d4 {[%clk 0:02:55.1]} 3... Nxd5 {[%clk
0:03:02.7]} 4. c4 {[%clk 0:02:55.7]} 4... Nb6 {[%clk 0:03:03.7]} 5. Nf3 {[%clk
0:02:54.5]} 5... g6 {[%clk 0:03:03.8]} 6. Nc3 {[%clk 0:02:52.4]} 6... Bg7 {[%clk
0:03:04.9]} 7. c5 {[%clk 0:02:43.4]} 7... Nd5 {[%clk 0:03:05]} 8. Bc4 {[%clk
0:02:44.4]} 8... c6 {[%clk 0:03:06]} 9. h3 {[%clk 0:02:42.2]} 9... O-O {[%clk
0:03:06.4]} 10. Qb3 {[%clk 0:02:42.3]} 10... e6 {[%clk 0:02:52.5]} 11. O-O
{[%clk 0:02:32.6]} 11... b6 {[%clk 0:02:49.3]} 12. Ne4 {[%clk 0:02:28.8]} 12...
Ba6 {[%clk 0:02:44.2]} 13. Bg5 {[%clk 0:02:20.4]} 13... f6 {[%clk 0:02:42.4]}
14. Be3 {[%clk 0:02:15.3]} 14... Bxc4 {[%clk 0:02:40.8]} 15. Qxc4 {[%clk
0:02:16.1]} 15... b5 {[%clk 0:02:40.8]} 16. Qb3 {[%clk 0:02:15.5]} 16... Na6
{[%clk 0:02:36.9]} 17. Nd6 {[%clk 0:02:01.9]} 17... Nac7 {[%clk 0:02:33.6]} 18.
a4 {[%clk 0:01:55]} 18... b4 {[%clk 0:02:32.2]} 19. a5 {[%clk 0:01:46.7]} 19...
Rb8 {[%clk 0:02:28.8]} 20. Nd2 {[%clk 0:01:40.8]} 20... f5 {[%clk 0:02:16.2]}
21. f4 {[%clk 0:01:18.9]} 21... Ne8 {[%clk 0:02:02.7]} 22. N2c4 {[%clk
0:01:18.1]} 22... Nef6 {[%clk 0:02:00.2]} 23. Ne5 {[%clk 0:01:07.7]} 23... Qc7
{[%clk 0:01:55.4]} 24. Bd2 {[%clk 0:01:01.6]} 24... Ne8 {[%clk 0:01:49.6]} 25.
Rac1 {[%clk 0:00:50.3]} 25... Nef6 {[%clk 0:01:34.4]} 26. Qa4 {[%clk 0:00:50.6]}
26... Ne7 {[%clk 0:01:28.3]} 27. a6 {[%clk 0:00:46.6]} 27... Nfd5 {[%clk
0:01:27.7]} 28. g4 {[%clk 0:00:43.4]} 28... h5 {[%clk 0:00:59]} 29. gxh5 {[%clk
0:00:42.1]} 29... gxh5 {[%clk 0:01:00]} 30. Kh2 {[%clk 0:00:43.4]} 30... Kh7
{[%clk 0:01:00.9]} 31. Rg1 {[%clk 0:00:43.9]} 31... Bh6 {[%clk 0:00:59.3]} 32.
Qd1 {[%clk 0:00:40]} 32... Nxf4 {[%clk 0:00:49.5]} 33. Bxf4 {[%clk 0:00:38.6]}
33... Bxf4+ {[%clk 0:00:51.4]} 34. Kh1 {[%clk 0:00:39.4]} 34... Ng8 {[%clk
0:00:27.2]} 35. Qxh5+ {[%clk 0:00:39.2]} 35... Nh6 {[%clk 0:00:19.8]} 36. Rg6
{[%clk 0:00:32.9]} 36... Rg8 {[%clk 0:00:18.3]} 37. Rcg1 {[%clk 0:00:32.9]}
37... Qe7 {[%clk 0:00:12.1]} 38. Ndf7 {[%clk 0:00:28.7]} 38... Qf8 {[%clk
0:00:06.2]} 39. Rxg8 {[%clk 0:00:28.4]} 39... Qxg8 {[%clk 0:00:07.3]} 40. Rxg8
{[%clk 0:00:29.2]} 40... Rxg8 {[%clk 0:00:09.2]} 41. Nxh6 {[%clk 0:00:30.3]}
41... Bxh6 {[%clk 0:00:09.6]} 42. Nf7 {[%clk 0:00:30.8]} 42... Rg7 {[%clk
0:00:11.5]} 43. Qxh6+ {[%clk 0:00:31.3]} 43... Kg8 {[%clk 0:00:12.8]} 44. Ng5
{[%clk 0:00:30.5]} 44... f4 {[%clk 0:00:13.5]} 45. Qxe6+ {[%clk 0:00:31.4]}
45... Kh8 {[%clk 0:00:14.9]} 46. Qe8+ {[%clk 0:00:28.6]} 46... Rg8 {[%clk
0:00:15.9]} 47. Qe7 {[%clk 0:00:29]} 47... Rg7 {[%clk 0:00:17]} 48. Qf8+ {[%clk
0:00:29.9]} 48... Rg8 {[%clk 0:00:18.2]} 49. Qh6# {[%clk 0:00:31.2]} 1-0

[Event "*** MasterClass Titled Tuesday Blitz"]
[Site "Chess.com"]
[Date "2017.12.05"]
[Round "4"]
[White "Sam_ChessMood"]
[Black "Rsnr"]
[Result "1/2-1/2"]
[WhiteElo "2626"]
[BlackElo "2637"]
[TimeControl "180+2"]
[EndTime "15:03:45 PST"]
[Termination "Game drawn by agreement"]

1. e4 {[%clk 0:03:01.9]} 1... c6 {[%clk 0:03:01.2]} 2. Nf3 {[%clk 0:02:58.8]}
2... d5 {[%clk 0:03:02.7]} 3. Nc3 {[%clk 0:03:00.1]} 3... Bg4 {[%clk 0:03:04]}
4. h3 {[%clk 0:02:56.8]} 4... Bh5 {[%clk 0:03:05.4]} 5. exd5 {[%clk 0:02:56.5]}
5... cxd5 {[%clk 0:03:07.3]} 6. g4 {[%clk 0:02:56.7]} 6... Bg6 {[%clk
0:03:08.4]} 7. Ne5 {[%clk 0:02:58]} 7... Nc6 {[%clk 0:03:09.9]} 8. d4 {[%clk
0:02:59.3]} 8... e6 {[%clk 0:03:09.9]} 9. h4 {[%clk 0:02:56.8]} 9... f6 {[%clk
0:03:10.9]} 10. Nxg6 {[%clk 0:02:56.5]} 10... hxg6 {[%clk 0:03:12.8]} 11. Bd3
{[%clk 0:02:55.4]} 11... Kf7 {[%clk 0:03:06.4]} 12. Ne2 {[%clk 0:02:56.2]} 12...
Bd6 {[%clk 0:03:02.6]} 13. c3 {[%clk 0:02:39.4]} 13... Nge7 {[%clk 0:02:59]} 14.
h5 {[%clk 0:02:25.5]} 14... Qc7 {[%clk 0:02:49.7]} 15. Be3 {[%clk 0:02:18.5]}
15... gxh5 {[%clk 0:02:34.5]} 16. gxh5 {[%clk 0:02:17.2]} 16... Nf5 {[%clk
0:02:31.9]} 17. Bxf5 {[%clk 0:01:52.5]} 17... exf5 {[%clk 0:02:33.8]} 18. Qd2
{[%clk 0:01:44.4]} 18... Rae8 {[%clk 0:02:31.9]} 19. O-O-O {[%clk 0:01:38.5]}
19... Qe7 {[%clk 0:02:08.6]} 20. Rh4 {[%clk 0:01:21]} 20... Qe6 {[%clk
0:02:00.4]} 21. Qd3 {[%clk 0:01:08.5]} 21... Rh7 {[%clk 0:01:57.5]} 22. Rdh1
{[%clk 0:01:06.9]} 22... Reh8 {[%clk 0:01:57.6]} 23. Bf4 {[%clk 0:00:53.4]}
23... Be7 {[%clk 0:01:58]} 24. Ng3 {[%clk 0:00:52.9]} 24... Ne5 {[%clk
0:01:37.1]} 25. dxe5 {[%clk 0:00:30.7]} 25... fxe5 {[%clk 0:01:39]} 26. Nxf5
{[%clk 0:00:16]} 26... Bxh4 {[%clk 0:01:39.8]} 27. Rxh4 {[%clk 0:00:12.1]} 27...
Rxh5 {[%clk 0:01:40.7]} 28. Rxh5 {[%clk 0:00:07.3]} 28... Rxh5 {[%clk
0:01:42.6]} 29. Nxg7 {[%clk 0:00:07.3]} 29... Kxg7 {[%clk 0:01:40.5]} 30. Bg3
{[%clk 0:00:07.1]} 30... Qh6+ {[%clk 0:01:36.3]} 31. Kd1 {[%clk 0:00:07.3]}
31... Rh1+ {[%clk 0:01:26.7]} 32. Kc2 {[%clk 0:00:08.6]} 32... Qe6 {[%clk
0:00:39.9]} 33. Qe3 {[%clk 0:00:09.3]} 33... Rh5 {[%clk 0:00:21.1]} 34. Qxa7
{[%clk 0:00:08.8]} 34... Qf5+ {[%clk 0:00:18.8]} 35. Kb3 {[%clk 0:00:09.9]}
35... Qd7 {[%clk 0:00:19.9]} 36. Qe3 {[%clk 0:00:09.1]} 36... Qb5+ {[%clk
0:00:21.2]} 37. Kc2 {[%clk 0:00:10.3]} 37... d4 {[%clk 0:00:19.2]} 38. cxd4
{[%clk 0:00:09.5]} 38... Qc4+ {[%clk 0:00:20.2]} 39. Qc3 {[%clk 0:00:10.2]}
39... Qxd4 {[%clk 0:00:18.2]} 40. Qxd4 {[%clk 0:00:08.9]} 40... exd4 {[%clk
0:00:20.1]} 41. Kd3 {[%clk 0:00:09.9]} 41... Rd5 {[%clk 0:00:18.9]} 42. f3
{[%clk 0:00:06.2]} 42... Kf6 {[%clk 0:00:19]} 43. Bf2 {[%clk 0:00:07]} 43... Ke5
{[%clk 0:00:20.6]} 44. Bg3+ {[%clk 0:00:06.8]} 44... Kf5 {[%clk 0:00:22.2]} 45.
Bf2 {[%clk 0:00:07.8]} 45... Ke5 {[%clk 0:00:17.4]} 46. Bg3+ {[%clk 0:00:08.6]}
1/2-1/2

[Event "*** MasterClass Titled Tuesday Blitz"]
[Site "Chess.com"]
[Date "2017.12.05"]
[Round "4"]
[White "joppie2"]
[Black "grzechu96"]
[Result "1-0"]
[WhiteElo "2606"]
[BlackElo "2431"]
[TimeControl "180+2"]
[EndTime "15:03:47 PST"]
[Termination "joppie2 won by checkmate"]

1. e4 {[%clk 0:03:01.7]} 1... c5 {[%clk 0:03:00.2]} 2. Nf3 {[%clk 0:03:01.8]}
2... d6 {[%clk 0:02:59]} 3. d4 {[%clk 0:03:03.2]} 3... cxd4 {[%clk 0:03:00.9]}
4. Nxd4 {[%clk 0:03:04.8]} 4... Nf6 {[%clk 0:03:02.2]} 5. Nc3 {[%clk 0:03:04.3]}
5... a6 {[%clk 0:03:03.1]} 6. Be2 {[%clk 0:03:05.8]} 6... e6 {[%clk 0:03:03.9]}
7. O-O {[%clk 0:03:04.4]} 7... Be7 {[%clk 0:03:04.9]} 8. f4 {[%clk 0:03:05.8]}
8... O-O {[%clk 0:03:06.2]} 9. Kh1 {[%clk 0:03:06.6]} 9... Nc6 {[%clk
0:03:07.6]} 10. Be3 {[%clk 0:03:06]} 10... Qc7 {[%clk 0:03:09.2]} 11. a4 {[%clk
0:03:05.8]} 11... Re8 {[%clk 0:03:09.4]} 12. Bf3 {[%clk 0:03:06.4]} 12... Rb8
{[%clk 0:03:10.4]} 13. g4 {[%clk 0:02:57.4]} 13... Na5 {[%clk 0:02:50.1]} 14. g5
{[%clk 0:02:56]} 14... Nd7 {[%clk 0:02:51.4]} 15. Bg2 {[%clk 0:02:51.2]} 15...
Bf8 {[%clk 0:02:38.5]} 16. Rf3 {[%clk 0:02:48.1]} 16... Nc4 {[%clk 0:02:36.8]}
17. Bc1 {[%clk 0:02:45.8]} 17... e5 {[%clk 0:02:37.9]} 18. Nd5 {[%clk
0:02:41.1]} 18... Qd8 {[%clk 0:02:38.4]} 19. Nf5 {[%clk 0:02:04.7]} 19... exf4
{[%clk 0:02:38.4]} 20. Bxf4 {[%clk 0:02:03.5]} 20... Nde5 {[%clk 0:02:33.9]} 21.
Rg3 {[%clk 0:01:57]} 21... Be6 {[%clk 0:02:19.9]} 22. b3 {[%clk 0:01:54.2]}
22... Bxd5 {[%clk 0:02:14.1]} 23. exd5 {[%clk 0:01:49]} 23... Nb6 {[%clk
0:02:15.2]} 24. Qh5 {[%clk 0:01:20.5]} 24... g6 {[%clk 0:02:16.5]} 25. Nh6+
{[%clk 0:01:20]} 25... Bxh6 {[%clk 0:01:53.4]} 26. Qxh6 {[%clk 0:01:12.7]} 26...
f5 {[%clk 0:01:54.4]} 27. gxf6 {[%clk 0:01:09.5]} 27... Qxf6 {[%clk 0:01:55.3]}
28. Rf1 {[%clk 0:01:07.8]} 28... Qg7 {[%clk 0:01:54.8]} 29. Qh3 {[%clk
0:01:05.8]} 29... Kh8 {[%clk 0:01:39.3]} 30. Bh6 {[%clk 0:01:04.9]} 30... Qd7
{[%clk 0:01:38.4]} 31. a5 {[%clk 0:01:04.9]} 31... Qxh3 {[%clk 0:01:38.3]} 32.
Bxh3 {[%clk 0:01:05.2]} 32... Nxd5 {[%clk 0:01:39.2]} 33. c4 {[%clk 0:01:02.1]}
33... Nb4 {[%clk 0:01:30]} 34. Rg2 {[%clk 0:00:39]} 34... Nbc6 {[%clk 0:01:14]}
35. Rd2 {[%clk 0:00:38.7]} 35... Kg8 {[%clk 0:01:10.1]} 36. Rxd6 {[%clk
0:00:26.9]} 36... Nf7 {[%clk 0:01:11.2]} 37. Rxf7 {[%clk 0:00:06.1]} 37... Kxf7
{[%clk 0:01:12]} 38. Bg5 {[%clk 0:00:06.7]} 38... Ne5 {[%clk 0:00:10.2]} 39. Bg2
{[%clk 0:00:06.4]} 39... Kg8 {[%clk 0:00:07.6]} 40. Bd5+ {[%clk 0:00:07.2]}
40... Nf7 {[%clk 0:00:06.1]} 41. Rd7 {[%clk 0:00:07.9]} 41... Rf8 {[%clk
0:00:07.4]} 42. Bh6 {[%clk 0:00:09.1]} 42... Rbd8 {[%clk 0:00:07.9]} 43. Bxf7+
{[%clk 0:00:09]} 43... Kh8 {[%clk 0:00:07.1]} 44. Bg5 {[%clk 0:00:09.5]} 44...
Rxd7 {[%clk 0:00:07.9]} 45. Bf6# {[%clk 0:00:10.5]} 1-0

[Event "*** MasterClass Titled Tuesday Blitz"]
[Site "Chess.com"]
[Date "2017.12.05"]
[Round "4"]
[White "VladDobrov"]
[Black "GeorgMeier"]
[Result "1-0"]
[WhiteElo "2617"]
[BlackElo "2796"]
[TimeControl "180+2"]
[EndTime "15:03:48 PST"]
[Termination "VladDobrov won by resignation"]

1. d4 {[%clk 0:03:01.9]} 1... e6 {[%clk 0:03:01]} 2. c4 {[%clk 0:03:03.8]} 2...
b6 {[%clk 0:03:00.6]} 3. Nf3 {[%clk 0:03:04.1]} 3... Bb7 {[%clk 0:03:01.9]} 4.
Nc3 {[%clk 0:03:05.3]} 4... Bb4 {[%clk 0:03:02.9]} 5. Qc2 {[%clk 0:03:06.5]}
5... Nf6 {[%clk 0:03:02.1]} 6. a3 {[%clk 0:03:07.5]} 6... Bxc3+ {[%clk
0:03:03.1]} 7. Qxc3 {[%clk 0:03:09.4]} 7... O-O {[%clk 0:02:52.5]} 8. e3 {[%clk
0:03:10.4]} 8... d5 {[%clk 0:02:53.4]} 9. b3 {[%clk 0:03:10.4]} 9... c5 {[%clk
0:02:53.7]} 10. Be2 {[%clk 0:03:09]} 10... cxd4 {[%clk 0:02:51.8]} 11. exd4
{[%clk 0:03:04.7]} 11... dxc4 {[%clk 0:02:45.8]} 12. bxc4 {[%clk 0:03:04.5]}
12... Nc6 {[%clk 0:02:46.7]} 13. Bb2 {[%clk 0:02:57.5]} 13... Rc8 {[%clk
0:02:48.1]} 14. Rc1 {[%clk 0:02:57.6]} 14... Na5 {[%clk 0:02:48.7]} 15. Qe3
{[%clk 0:02:56.8]} 15... Re8 {[%clk 0:02:17.9]} 16. Ne5 {[%clk 0:02:55.5]} 16...
Nd7 {[%clk 0:02:15.8]} 17. O-O {[%clk 0:02:44.2]} 17... Nxe5 {[%clk 0:02:15.9]}
18. Qxe5 {[%clk 0:02:38.9]} 18... Qh4 {[%clk 0:01:55.8]} 19. Rfd1 {[%clk
0:02:30.8]} 19... Nc6 {[%clk 0:01:35.7]} 20. Qe3 {[%clk 0:02:30]} 20... Ne7
{[%clk 0:01:36.9]} 21. Qg3 {[%clk 0:02:09.3]} 21... Qf6 {[%clk 0:01:26.8]} 22.
Bf1 {[%clk 0:01:54]} 22... Nf5 {[%clk 0:01:18.6]} 23. Qf4 {[%clk 0:01:48.1]}
23... h6 {[%clk 0:01:13.4]} 24. Rd2 {[%clk 0:01:38.5]} 24... Qg5 {[%clk
0:01:11.7]} 25. Qxg5 {[%clk 0:01:36.9]} 25... hxg5 {[%clk 0:01:13.6]} 26. a4
{[%clk 0:01:14.9]} 26... Red8 {[%clk 0:01:13.3]} 27. a5 {[%clk 0:01:14.6]} 27...
bxa5 {[%clk 0:01:12.4]} 28. Ra1 {[%clk 0:01:13.1]} 28... Ba6 {[%clk 0:01:10.8]}
29. Ra4 {[%clk 0:00:50.9]} 29... Rd7 {[%clk 0:01:11.9]} 30. Bc3 {[%clk
0:00:43.3]} 30... Nd6 {[%clk 0:01:10.5]} 31. c5 {[%clk 0:00:41.1]} 31... Bxf1
{[%clk 0:01:09.3]} 32. Kxf1 {[%clk 0:00:42.3]} 32... Ne4 {[%clk 0:00:21.4]} 33.
Rc2 {[%clk 0:00:42.7]} 33... Nxc3 {[%clk 0:00:17.5]} 34. Rxc3 {[%clk 0:00:44.6]}
34... Rcd8 {[%clk 0:00:15.6]} 35. Rcc4 {[%clk 0:00:45.8]} 35... Kf8 {[%clk
0:00:13.6]} 36. Ke2 {[%clk 0:00:45.4]} 36... Ke7 {[%clk 0:00:13.3]} 37. Ke3
{[%clk 0:00:45.2]} 37... Kf6 {[%clk 0:00:09.2]} 38. Rxa5 {[%clk 0:00:45.2]}
38... e5 {[%clk 0:00:08.7]} 39. Ra6+ {[%clk 0:00:40]} 39... Kf5 {[%clk
0:00:08.8]} 40. g4+ {[%clk 0:00:40.9]} 40... Kxg4 {[%clk 0:00:06]} 41. d5+
{[%clk 0:00:42.8]} 41... Kh3 {[%clk 0:00:06.6]} 42. d6 {[%clk 0:00:44.7]} 42...
g4 {[%clk 0:00:05.8]} 43. Ke4 {[%clk 0:00:45.8]} 43... Kxh2 {[%clk 0:00:05.7]}
44. Kxe5 {[%clk 0:00:46.7]} 44... Re8+ {[%clk 0:00:07]} 45. Kd5 {[%clk
0:00:47.8]} 45... Re6 {[%clk 0:00:07.7]} 46. Rxg4 {[%clk 0:00:47.9]} 46... g6
{[%clk 0:00:08.6]} 47. Rf4 {[%clk 0:00:48]} 47... Kg2 {[%clk 0:00:08.5]} 48.
Rxf7 {[%clk 0:00:47.3]} 48... Rexd6+ {[%clk 0:00:09.9]} 49. cxd6 {[%clk
0:00:47.8]} 49... Rxf7 {[%clk 0:00:11.8]} 50. Ra2 {[%clk 0:00:47.3]} 50... Kf3
{[%clk 0:00:11.7]} 51. Ke6 {[%clk 0:00:48.5]} 51... Rf8 {[%clk 0:00:12.2]} 52.
Ke7 {[%clk 0:00:49.4]} 52... Rh8 {[%clk 0:00:12.8]} 53. d7 {[%clk 0:00:50.6]}
53... g5 {[%clk 0:00:12.4]} 54. d8=Q {[%clk 0:00:51.3]} 54... Rxd8 {[%clk
0:00:14.3]} 55. Kxd8 {[%clk 0:00:52.8]} 55... g4 {[%clk 0:00:15.7]} 56. Kc7
{[%clk 0:00:53.8]} 56... a5 {[%clk 0:00:17.2]} 57. Kb6 {[%clk 0:00:54.6]} 57...
a4 {[%clk 0:00:18.7]} 58. Ka5 {[%clk 0:00:55.7]} 58... a3 {[%clk 0:00:20.2]} 59.
Ka4 {[%clk 0:00:56.9]} 1-0

[Event "*** MasterClass Titled Tuesday Blitz"]
[Site "Chess.com"]
[Date "2017.12.05"]
[Round "4"]
[White "mikelito7"]
[Black "d4xaoc"]
[Result "1-0"]
[WhiteElo "1355"]
[BlackElo "1201"]
[TimeControl "180+2"]
[EndTime "15:03:52 PST"]
[Termination "mikelito7 won by resignation"]

1. d4 {[%clk 0:02:58.5]} 1... e6 {[%clk 0:03:00.6]} 2. e4 {[%clk 0:02:58.1]}
2... c5 {[%clk 0:03:01.3]} 3. d5 {[%clk 0:02:54.1]} 3... exd5 {[%clk 0:03:01.9]}
4. exd5 {[%clk 0:02:53.5]} 4... d6 {[%clk 0:03:02.8]} 5. c4 {[%clk 0:02:53.7]}
5... Be7 {[%clk 0:03:02.2]} 6. Nc3 {[%clk 0:02:54.8]} 6... Nf6 {[%clk
0:03:01.5]} 7. Bd3 {[%clk 0:02:55.5]} 7... O-O {[%clk 0:03:02]} 8. Be3 {[%clk
0:02:53.7]} 8... Nbd7 {[%clk 0:03:02.5]} 9. Qd2 {[%clk 0:02:49.7]} 9... Ne5
{[%clk 0:03:02.7]} 10. Be2 {[%clk 0:02:46.5]} 10... Bg4 {[%clk 0:03:00.6]} 11.
f3 {[%clk 0:02:46.1]} 11... Bf5 {[%clk 0:02:59.5]} 12. g4 {[%clk 0:02:46.2]}
12... Bg6 {[%clk 0:02:55.5]} 13. h4 {[%clk 0:02:45]} 13... h6 {[%clk 0:02:52.7]}
14. h5 {[%clk 0:02:42.9]} 14... Bh7 {[%clk 0:02:51.4]} 15. Nh3 {[%clk
0:02:44.2]} 15... Nfd7 {[%clk 0:02:48.9]} 16. O-O {[%clk 0:02:32.6]} 16... Bh4
{[%clk 0:02:40.3]} 17. f4 {[%clk 0:02:27.1]} 17... Nxg4 {[%clk 0:02:34.9]} 18.
Bxg4 {[%clk 0:02:25.8]} 18... Nf6 {[%clk 0:02:30.5]} 19. Bf3 {[%clk 0:02:19.3]}
19... Bf5 {[%clk 0:02:25.3]} 20. Kh2 {[%clk 0:02:16.7]} 20... Bg4 {[%clk
0:02:21.4]} 21. Qe2 {[%clk 0:01:59.7]} 21... Bxh3 {[%clk 0:01:59.5]} 22. Kxh3
{[%clk 0:01:57]} 22... Nd7 {[%clk 0:01:37.1]} 23. Bg4 {[%clk 0:01:35.6]} 23...
Bf6 {[%clk 0:01:30]} 24. Ne4 {[%clk 0:01:31.5]} 24... Re8 {[%clk 0:01:28.6]} 25.
Nxf6+ {[%clk 0:01:27.7]} 25... Nxf6 {[%clk 0:01:29]} 26. Rae1 {[%clk 0:01:22.7]}
26... Qc7 {[%clk 0:01:16.2]} 27. Qf3 {[%clk 0:01:17.6]} 27... Nxg4 {[%clk
0:00:59]} 28. Qxg4 {[%clk 0:01:16.9]} 28... Rf8 {[%clk 0:00:58.4]} 29. Bd2
{[%clk 0:01:14.7]} 29... f5 {[%clk 0:00:58.3]} 30. Qg3 {[%clk 0:01:11]} 30...
Qf7 {[%clk 0:00:58.2]} 31. Bc3 {[%clk 0:01:04.6]} 31... Kh8 {[%clk 0:00:51]} 32.
Rg1 {[%clk 0:00:52.6]} 32... Qxh5+ {[%clk 0:00:50.9]} 33. Qh4 {[%clk 0:00:48.5]}
33... Qxh4+ {[%clk 0:00:49.6]} 34. Kxh4 {[%clk 0:00:48.7]} 34... Rg8 {[%clk
0:00:49.8]} 35. Rg6 {[%clk 0:00:46.6]} 35... Kh7 {[%clk 0:00:50]} 36. Reg1
{[%clk 0:00:45.3]} 36... Raf8 {[%clk 0:00:44.9]} 37. Rxg7+ {[%clk 0:00:42]}
37... Rxg7 {[%clk 0:00:44.4]} 38. Rxg7+ {[%clk 0:00:40.9]} 38... Kh8 {[%clk
0:00:44.6]} 39. Rxb7+ {[%clk 0:00:37.1]} 39... Kg8 {[%clk 0:00:45]} 40. Rg7+
{[%clk 0:00:36.6]} 40... Kh8 {[%clk 0:00:45.3]} 41. Rxa7+ {[%clk 0:00:36.9]}
41... Kg8 {[%clk 0:00:45.7]} 42. Rg7+ {[%clk 0:00:36.6]} 42... Kh8 {[%clk
0:00:46.2]} 43. Rf7+ {[%clk 0:00:38]} 43... Kg8 {[%clk 0:00:46.6]} 44. Rxf8+
{[%clk 0:00:38.3]} 44... Kxf8 {[%clk 0:00:47.3]} 45. Kh5 {[%clk 0:00:34.9]}
45... Kf7 {[%clk 0:00:46.8]} 46. a4 {[%clk 0:00:34.4]} 46... Ke7 {[%clk
0:00:43.6]} 47. Kxh6 {[%clk 0:00:35]} 47... Kd7 {[%clk 0:00:44.2]} 48. Kg5
{[%clk 0:00:35.2]} 48... Kc7 {[%clk 0:00:44.8]} 49. Kxf5 {[%clk 0:00:35.8]}
49... Kb6 {[%clk 0:00:45.2]} 50. Ke6 {[%clk 0:00:36.6]} 50... Kc7 {[%clk
0:00:45.9]} 51. f5 {[%clk 0:00:35.5]} 1-0